[Event "II Open Internacional Ateneo Marítimo (60 Aniversario)"]
[Site "C/La reina 68 (Valencia), Spain"]
[Date "2018.09.15"]
[Round "7.2"]
[White "Plaskett, H James"]
[Black "Castella Garcia, Fausto"]
[Result "1-0"]
[TimeControl "7m+3s por jugada"]
[WhiteFideId "400238"]
[BlackFideId "3501922"]
[WhiteElo "2450"]
[BlackElo "2326"]

1. e4 {[%clk 00:07:06]} c5 {[%clk 00:07:04]} {[%emt 00:00:14]} 2. Nc3 {[%clk
00:07:07]} Nc6 {[%clk 00:07:06]} 3. Bb5 {[%clk 00:07:09]} {[%emt 00:00:04]} Nd4
{[%clk 00:07:06]} 4. Bc4 {[%clk 00:07:11]} g6 {[%clk 00:07:04]} {[%emt
00:00:04]} 5. f4 {[%clk 00:07:07]} {[%emt 00:00:07]} d6 {[%clk 00:06:43]}
{[%emt 00:00:18]} 6. Nf3 {[%clk 00:07:08]} {[%emt 00:00:37]} Bg7 {[%clk
00:06:31]} {[%emt 00:00:04]} 7. O-O {[%clk 00:07:02]} Nf6 {[%clk 00:06:27]} 8.
d3 {[%clk 00:06:31]} {[%emt 00:00:26]} Bg4 {[%clk 00:05:51]} {[%emt 00:00:51]}
9. Be3 {[%clk 00:06:12]} {[%emt 00:00:37]} Bxf3 {[%clk 00:05:49]} 10. gxf3
{[%clk 00:06:13]} O-O {[%clk 00:05:43]} 11. f5 {[%clk 00:06:15]} e6 {[%clk
00:05:02]} {[%emt 00:00:33]} 12. fxe6 {[%clk 00:06:12]} {[%emt 00:00:15]} fxe6
{[%clk 00:05:04]} 13. Bxd4 {[%clk 00:05:54]} {[%emt 00:00:18]} cxd4 {[%clk
00:05:06]} 14. Bxe6+ {[%clk 00:05:55]} Kh8 {[%clk 00:05:08]} {[%emt 00:00:03]}
15. Ne2 {[%clk 00:05:56]} Nh5 {[%clk 00:04:38]} {[%emt 00:00:30]} 16. Bg4
{[%clk 00:04:54]} {[%emt 00:01:04]} Qg5 {[%clk 00:03:33]} {[%emt 00:01:09]} 17.
Kh1 {[%clk 00:04:48]} {[%emt 00:00:29]} Be5 {[%clk 00:03:28]} 18. Bxh5 {[%clk
00:04:38]} {[%emt 00:00:08]} gxh5 {[%clk 00:03:23]} {[%emt 00:00:03]} 19. f4
{[%clk 00:04:02]} {[%emt 00:00:40]} Bxf4 {[%clk 00:03:23]} {[%emt 00:00:03]} 20.
Nxf4 {[%clk 00:02:52]} {[%emt 00:01:10]} Rxf4 {[%clk 00:03:25]} {[%emt
00:00:17]} 21. Rxf4 {[%clk 00:02:53]} Qxf4 {[%clk 00:03:26]} 22. Qxh5 {[%clk
00:02:54]} Rg8 {[%clk 00:03:25]} {[%emt 00:00:11]} 23. Qe2 {[%clk 00:02:27]}
{[%emt 00:00:30]} Rf8 {[%clk 00:01:16]} {[%emt 00:02:01]} 24. Rg1 {[%clk
00:02:20]} {[%emt 00:00:07]} Qh4 {[%clk 00:00:51]} {[%emt 00:00:28]} 25. Qg2
{[%clk 00:02:00]} {[%emt 00:00:22]} Qf6 {[%clk 00:00:41]} {[%emt 00:00:10]} 26.
Qg4 {[%clk 00:01:34]} {[%emt 00:00:41]} a6 {[%clk 00:00:29]} {[%emt 00:00:07]}
27. h3 {[%clk 00:01:29]} {[%emt 00:00:07]} b5 {[%clk 00:00:25]} {[%emt
00:00:12]} 28. Rg2 {[%clk 00:01:29]} {[%emt 00:00:03]} Qf1+ {[%clk 00:00:24]}
29. Kh2 {[%clk 00:01:30]} {[%emt 00:00:04]} Qf6 {[%clk 00:00:26]} 30. a3 {[%clk
00:01:12]} {[%emt 00:00:17]} Qe5+ {[%clk 00:00:25]} {[%emt 00:00:17]} 31. Kg1
{[%clk 00:01:08]} Qf6 {[%clk 00:00:25]} 32. h4 {[%clk 00:01:06]} {[%emt
00:00:04]} Qf1+ {[%clk 00:00:20]} {[%emt 00:00:09]} 33. Kh2 {[%clk 00:01:08]}
Qf6 {[%clk 00:00:19]} {[%emt 00:00:04]} 34. Rg3 {[%clk 00:00:53]} {[%emt
00:00:18]} Qf2+ {[%clk 00:00:20]} {[%emt 00:00:21]} 35. Rg2 {[%clk 00:00:54]}
Qf6 {[%clk 00:00:23]} {[%emt 00:00:17]} 36. Kh3 {[%clk 00:00:53]} Qe5 {[%clk
00:00:21]} 37. Qg5 {[%clk 00:00:49]} Qe6+ {[%clk 00:00:23]} 38. Kh2 {[%clk
00:00:50]} Qf7 {[%clk 00:00:24]} 39. b4 {[%clk 00:00:49]} Re8 {[%clk 00:00:19]}
40. h5 {[%clk 00:00:43]} {[%emt 00:00:08]} Re5 {[%clk 00:00:22]} 41. Qd8+
{[%clk 00:00:45]} {[%emt 00:00:08]} Re8 {[%clk 00:00:24]} 42. Qh4 {[%clk
00:00:47]} Rf8 {[%clk 00:00:25]} {[%emt 00:00:03]} 43. h6 {[%clk 00:00:46]} Qe6
{[%clk 00:00:24]} {[%emt 00:00:03]} 44. Qg5 {[%clk 00:00:46]} Qe5+ {[%clk
00:00:24]} {[%emt 00:00:07]} 45. Kg1 {[%clk 00:00:44]} {[%emt 00:00:10]} Qxg5
{[%clk 00:00:23]} 46. Rxg5 {[%clk 00:00:47]} Rf6 {[%clk 00:00:25]} 47. Rh5
{[%clk 00:00:45]} {[%emt 00:00:16]} Kg8 {[%clk 00:00:27]} 48. Kg2 {[%clk
00:00:47]} Kf7 {[%clk 00:00:30]} 49. Rd5 {[%clk 00:00:49]} Ke6 {[%clk
00:00:29]} 50. Rxd4 {[%clk 00:00:49]} Rxh6 51. Rd5 {[%emt 00:00:13]} Rg6+
{[%clk 00:00:33]} 52. Kf2 {[%clk 00:00:54]} Rf6+ {[%clk 00:00:31]} 53. Ke2
{[%clk 00:00:55]} Rh6 {[%clk 00:00:32]} 54. Kd2 {[%clk 00:00:57]} Rh2+ {[%clk
00:00:34]} 55. Kc3 {[%clk 00:01:00]} h5 {[%clk 00:00:37]} {[%emt 00:00:03]} 56.
Rg5 {[%clk 00:01:01]} h4 {[%clk 00:00:38]} 57. Rh5 {[%clk 00:01:03]} h3 {[%clk
00:00:40]} 58. Kd4 {[%clk 00:01:04]} {[%emt 00:00:07]} Rxc2 {[%clk 00:00:42]}
59. Rh6+ {[%clk 00:01:06]} Ke7 {[%clk 00:00:42]} 60. Rxh3 {[%clk 00:01:07]} Ra2
{[%clk 00:00:41]} {[%emt 00:00:10]} 61. Kd5 {[%clk 00:01:08]} {[%emt 00:00:04]}
Rxa3 {[%clk 00:00:42]} 62. Rh7+ {[%clk 00:01:10]} Kd8 {[%clk 00:00:44]} 63. d4
{[%clk 00:01:12]} Rd3 {[%clk 00:00:40]} {[%emt 00:00:06]} 64. Ra7 {[%clk
00:01:13]} {[%emt 00:00:06]} Kc8 {[%clk 00:00:30]} {[%emt 00:00:30]} 65. Rxa6
{[%clk 00:01:14]} Rb3 {[%clk 00:00:17]} {[%emt 00:00:10]} 66. Rxd6 {[%clk
00:01:15]} Rxb4 {[%clk 00:00:20]} 67. e5 {[%clk 00:01:17]} Rb1 {[%clk
00:00:21]} 68. e6 {[%clk 00:01:15]} Re1 {[%clk 00:00:21]} 69. Rb6 {[%clk
00:01:16]} {[%emt 00:00:08]} 1-0

[Event "II Open Internacional Ateneo Marítimo (60 Aniversario)"]
[Site "C/La reina 68 (Valencia), Spain"]
[Date "2018.09.15"]
[Round "7.3"]
[White "Chernikov, Vladimir"]
[Black "Valmana Canto, Jaime"]
[Result "1-0"]
[TimeControl "7m+3s por jugada"]
[WhiteFideId "14112914"]
[BlackFideId "2268990"]
[WhiteElo "2158"]
[BlackElo "2340"]

1. Nf3 {[%clk 00:07:05]} {[%emt 00:00:11]} Nf6 {[%clk 00:06:57]} {[%emt
00:00:05]} 2. b3 {[%clk 00:07:06]} d6 {[%clk 00:06:56]} 3. d4 {[%clk 00:07:01]}
{[%emt 00:00:10]} Nbd7 {[%clk 00:06:41]} {[%emt 00:00:17]} 4. Bb2 {[%clk
00:06:48]} {[%emt 00:00:16]} c5 {[%clk 00:06:36]} {[%emt 00:00:08]} 5. e3
{[%clk 00:06:32]} {[%emt 00:00:19]} e6 {[%clk 00:06:18]} {[%emt 00:00:22]} 6.
Bd3 {[%clk 00:06:30]} {[%emt 00:00:05]} Be7 {[%clk 00:06:18]} {[%emt 00:00:06]}
7. O-O {[%clk 00:06:31]} O-O {[%clk 00:06:19]} {[%emt 00:00:11]} 8. c4 {[%clk
00:06:33]} b6 {[%clk 00:06:20]} 9. Nbd2 {[%clk 00:06:34]} Bb7 {[%clk 00:06:22]}
{[%emt 00:00:05]} 10. Qc2 {[%clk 00:06:36]} cxd4 {[%clk 00:06:09]} {[%emt
00:00:07]} 11. exd4 {[%clk 00:05:44]} {[%emt 00:00:56]} Rc8 {[%clk 00:06:11]}
12. Rac1 {[%clk 00:05:19]} {[%emt 00:00:29]} Re8 {[%clk 00:06:00]} {[%emt
00:00:14]} 13. Rfe1 {[%clk 00:05:20]} {[%emt 00:00:07]} Nf8 {[%clk 00:05:59]}
{[%emt 00:00:05]} 14. Ne4 {[%clk 00:04:46]} {[%emt 00:00:33]} b5 {[%clk
00:05:43]} {[%emt 00:00:16]} 15. Qb1 {[%clk 00:04:20]} {[%emt 00:00:37]} bxc4
{[%clk 00:05:23]} {[%emt 00:00:16]} 16. bxc4 {[%clk 00:04:19]} {[%emt
00:00:06]} Rb8 {[%clk 00:04:27]} {[%emt 00:01:00]} 17. Nxf6+ {[%clk 00:03:05]}
{[%emt 00:01:13]} Bxf6 {[%clk 00:04:28]} 18. Nd2 {[%clk 00:02:13]} {[%emt
00:00:57]} Bxd4 {[%clk 00:03:23]} {[%emt 00:01:09]} 19. Bxd4 {[%clk 00:01:51]}
{[%emt 00:00:25]} Qg5 {[%clk 00:03:24]} 20. g3 {[%clk 00:00:35]} {[%emt
00:01:20]} Qxd2 {[%clk 00:02:49]} {[%emt 00:00:38]} 21. Bxa7 {[%clk 00:00:37]}
Ra8 {[%clk 00:02:15]} {[%emt 00:00:38]} 22. Be3 {[%clk 00:00:22]} {[%emt
00:00:19]} Qxa2 {[%clk 00:01:27]} {[%emt 00:00:51]} 23. Qxb7 {[%clk 00:00:23]}
Reb8 {[%clk 00:01:25]} {[%emt 00:00:10]} 24. Qf3 {[%clk 00:00:17]} {[%emt
00:00:05]} Nd7 {[%clk 00:01:22]} {[%emt 00:00:09]} 25. Bd4 {[%clk 00:00:14]}
{[%emt 00:00:06]} e5 {[%clk 00:01:16]} {[%emt 00:00:05]} 26. Ra1 {[%clk
00:00:16]} exd4 {[%clk 00:00:54]} {[%emt 00:00:26]} 27. Rxa2 {[%clk 00:00:18]}
{[%emt 00:00:05]} Rxa2 {[%clk 00:00:56]} 28. Qe4 {[%clk 00:00:13]} {[%emt
00:00:08]} Nf6 {[%clk 00:00:56]} {[%emt 00:00:05]} 29. Qxd4 {[%clk 00:00:14]}
Rd8 {[%clk 00:00:24]} {[%emt 00:00:35]} 30. c5 {[%clk 00:00:16]} d5 {[%clk
00:00:26]} {[%emt 00:00:04]} 31. c6 {[%clk 00:00:18]} Rc8 {[%clk 00:00:22]}
{[%emt 00:00:05]} 32. Qb6 {[%clk 00:00:14]} {[%emt 00:00:12]} g6 {[%clk
00:00:12]} {[%emt 00:00:06]} 33. Qb7 {[%clk 00:00:14]} {[%emt 00:00:06]} Raa8
{[%clk 00:00:14]} 34. Ba6 {[%clk 00:00:12]} {[%emt 00:00:05]} Rcb8 {[%clk
00:00:13]} {[%emt 00:00:04]} 35. c7 {[%clk 00:00:11]} {[%emt 00:00:09]} 1-0

[Event "II Open Internacional Ateneo Marítimo (60 Aniversario)"]
[Site "C/La reina 68 (Valencia), Spain"]
[Date "2018.09.15"]
[Round "7.4"]
[White "Sos Andreu, Eric"]
[Black "Torres Sanchez, Jose"]
[Result "1-0"]
[TimeControl "7m+3s por jugada"]
[WhiteFideId "22247017"]
[BlackFideId "2217210"]
[WhiteElo "2332"]
[BlackElo "2290"]

1. d4 {[%clk 00:07:05]} d5 {[%clk 00:07:03]} 2. c4 {[%clk 00:07:06]} e6 {[%clk
00:07:02]} {[%emt 00:00:03]} 3. Nf3 {[%clk 00:07:07]} {[%emt 00:00:03]} Nf6
{[%clk 00:07:00]} {[%emt 00:00:09]} 4. g3 {[%clk 00:07:07]} {[%emt 00:00:04]}
Be7 {[%clk 00:06:58]} 5. Bg2 {[%clk 00:07:08]} O-O {[%clk 00:06:58]} {[%emt
00:00:06]} 6. O-O {[%clk 00:07:08]} {[%emt 00:00:08]} dxc4 {[%clk 00:06:56]} 7.
Ne5 {[%clk 00:07:06]} {[%emt 00:00:08]} Nc6 {[%clk 00:06:52]} 8. Bxc6 {[%clk
00:07:05]} {[%emt 00:00:11]} bxc6 {[%clk 00:06:53]} 9. Nxc6 {[%clk 00:07:06]}
Qe8 {[%clk 00:06:50]} {[%emt 00:00:04]} 10. Nxe7+ {[%clk 00:07:07]} {[%emt
00:00:22]} Qxe7 {[%clk 00:06:52]} 11. Qa4 {[%clk 00:07:08]} c5 {[%clk
00:06:42]} 12. Qa3 {[%clk 00:07:09]} Bb7 {[%clk 00:06:09]} {[%emt 00:01:01]} 13.
Nc3 {[%clk 00:06:42]} {[%emt 00:00:03]} Rfc8 {[%clk 00:04:17]} {[%emt
00:02:13]} 14. Na4 {[%clk 00:06:26]} {[%emt 00:00:20]} Nd7 {[%clk 00:03:25]}
{[%emt 00:00:36]} 15. Be3 {[%clk 00:06:17]} {[%emt 00:00:22]} h5 {[%clk
00:01:30]} {[%emt 00:01:48]} 16. Nxc5 {[%clk 00:05:37]} {[%emt 00:01:22]} Nxc5
{[%clk 00:01:31]} 17. dxc5 {[%clk 00:05:38]} h4 {[%clk 00:01:22]} 18. Qc3
{[%clk 00:05:00]} {[%emt 00:00:39]} hxg3 {[%clk 00:01:17]} {[%emt 00:00:12]} 19.
hxg3 {[%clk 00:04:41]} Bd5 {[%clk 00:01:18]} 20. Rad1 {[%clk 00:04:32]} {[%emt
00:00:08]} Rab8 {[%clk 00:01:00]} {[%emt 00:00:21]} 21. Rd2 {[%clk 00:04:19]}
{[%emt 00:00:16]} f6 {[%clk 00:00:56]} {[%emt 00:00:07]} 22. Bf4 {[%clk
00:04:10]} {[%emt 00:00:53]} Rb7 {[%clk 00:00:47]} 23. Bd6 {[%clk 00:04:11]}
Qf7 {[%clk 00:00:49]} 24. f3 {[%clk 00:04:00]} {[%emt 00:00:06]} Qg6 {[%clk
00:00:47]} 25. e4 {[%clk 00:03:55]} {[%emt 00:00:19]} Bc6 {[%clk 00:00:33]} 26.
Qxc4 {[%clk 00:03:53]} {[%emt 00:00:06]} Kf7 {[%clk 00:00:34]} 27. Qa6 {[%clk
00:02:38]} {[%emt 00:01:27]} Rd7 {[%clk 00:00:16]} {[%emt 00:00:07]} 28. Qxc8
{[%clk 00:02:25]} {[%emt 00:00:38]} Rxd6 {[%clk 00:00:16]} 29. Qc7+ {[%clk
00:02:27]} 1-0

[Event "II Open Internacional Ateneo Marítimo (60 Aniversario)"]
[Site "C/La reina 68 (Valencia), Spain"]
[Date "2018.09.15"]
[Round "7.5"]
[White "Garcia, Jhoel"]
[Black "Ibanez Aullana, Ramon"]
[Result "0-1"]
[TimeControl "7m+3s por jugada"]
[WhiteFideId "3801110"]
[BlackFideId "2207532"]
[WhiteElo "2250"]
[BlackElo "2301"]

1. d4 {[%clk 00:07:02]} Nf6 {[%clk 00:07:05]} 2. c4 {[%clk 00:07:03]} e6 {[%clk
00:07:07]} 3. Nc3 {[%clk 00:07:00]} Bb4 {[%clk 00:07:09]} 4. e3 {[%clk
00:07:02]} b6 {[%clk 00:07:04]} {[%emt 00:00:04]} 5. Qc2 {[%clk 00:06:54]}
{[%emt 00:00:11]} Bb7 {[%clk 00:06:56]} {[%emt 00:00:08]} 6. a3 {[%clk
00:06:48]} {[%emt 00:00:11]} Bxc3+ {[%clk 00:06:50]} {[%emt 00:00:04]} 7. Qxc3
{[%clk 00:06:50]} O-O {[%clk 00:06:50]} {[%emt 00:00:11]} 8. Nf3 {[%clk
00:06:52]} c5 {[%clk 00:06:39]} {[%emt 00:00:40]} 9. dxc5 {[%clk 00:06:35]}
{[%emt 00:00:14]} Ne4 {[%clk 00:06:24]} 10. Qc2 {[%clk 00:06:30]} bxc5 {[%clk
00:06:15]} {[%emt 00:00:10]} 11. Bd3 {[%clk 00:06:27]} {[%emt 00:00:08]} f5
{[%clk 00:06:16]} {[%emt 00:00:14]} 12. Nd2 {[%clk 00:05:50]} {[%emt 00:00:25]}
Qh4 {[%clk 00:05:36]} {[%emt 00:00:52]} 13. Nxe4 {[%clk 00:04:13]} {[%emt
00:01:32]} fxe4 {[%clk 00:05:36]} {[%emt 00:00:38]} 14. Bf1 {[%clk 00:04:12]}
Nc6 {[%clk 00:05:29]} 15. g3 {[%clk 00:04:00]} Qf6 {[%clk 00:05:29]} 16. Bg2
{[%clk 00:01:07]} {[%emt 00:02:55]} Ne5 {[%clk 00:05:30]} {[%emt 00:00:07]} 17.
O-O {[%clk 00:00:37]} {[%emt 00:00:24]} Qh6 {[%clk 00:04:52]} {[%emt 00:00:44]}
18. h3 {[%clk 00:00:22]} {[%emt 00:00:20]} Rf5 {[%clk 00:03:27]} {[%emt
00:01:29]} 19. b4 {[%clk 00:00:17]} {[%emt 00:00:07]} Nf3+ {[%clk 00:02:28]}
{[%emt 00:01:01]} 20. Bxf3 {[%clk 00:00:13]} {[%emt 00:00:07]} exf3 {[%clk
00:02:29]} {[%emt 00:00:04]} 21. h4 {[%clk 00:00:05]} {[%emt 00:00:12]} Qh5
{[%clk 00:01:54]} {[%emt 00:00:46]} 22. e4 {[%clk 00:00:08]} Qg4 {[%clk
00:01:56]} 23. Kh2 {[%clk 00:00:06]} Rh5 {[%clk 00:01:43]} {[%emt 00:00:41]} 24.
Bg5 {[%clk 00:00:05]} Rxg5 {[%clk 00:01:43]} 25. Rh1 {[%clk 00:00:05]} {[%emt
00:00:03]} Re5 {[%clk 00:01:33]} 26. Qd2 {[%clk 00:00:06]} Rxe4 {[%clk
00:01:08]} {[%emt 00:00:19]} 27. Qxd7 {[%clk 00:00:08]} {[%emt 00:00:27]} Re2
{[%clk 00:01:09]} 28. Rhf1 {[%clk 00:00:11]} Be4 {[%clk 00:00:44]} {[%emt
00:00:03]} 29. Rad1 {[%clk 00:00:11]} {[%emt 00:00:03]} Bf5 {[%clk 00:00:40]}
{[%emt 00:00:08]} 30. Rh1 {[%clk 00:00:09]} {[%emt 00:00:15]} Qh3+ {[%clk
00:00:41]} 0-1

[Event "II Open Internacional Ateneo Marítimo (60 Aniversario)"]
[Site "C/La reina 68 (Valencia), Spain"]
[Date "2018.09.15"]
[Round "7.6"]
[White "Nieves Cabanes, Jose Manuel"]
[Black "Sanchez Saez, Francisco"]
[Result "0-1"]
[TimeControl "7m+3s por jugada"]
[WhiteFideId "22245715"]
[BlackFideId "2231743"]
[WhiteElo "2278"]
[BlackElo "2332"]

1. Nf3 {[%clk 00:07:03]} {[%emt 00:00:08]} g6 {[%clk 00:07:03]} 2. c4 {[%clk
00:07:03]} Bg7 {[%clk 00:07:03]} 3. g3 {[%clk 00:07:03]} c5 {[%clk 00:07:03]}
{[%emt 00:00:04]} 4. Bg2 {[%clk 00:07:03]} {[%emt 00:00:04]} Nc6 {[%clk
00:07:03]} 5. O-O {[%clk 00:07:03]} {[%emt 00:00:03]} d6 {[%clk 00:07:03]} 6.
Nc3 {[%clk 00:07:03]} {[%emt 00:00:11]} Bf5 {[%clk 00:07:03]} 7. d3 {[%clk
00:06:35]} {[%emt 00:00:38]} Qd7 {[%clk 00:07:03]} 8. Nd5 {[%clk 00:06:26]}
{[%emt 00:00:25]} Rc8 {[%clk 00:06:33]} {[%emt 00:00:35]} 9. Re1 {[%clk
00:05:58]} {[%emt 00:00:05]} Bh3 {[%clk 00:06:33]} {[%emt 00:00:13]} 10. Bh1
{[%clk 00:05:58]} h5 {[%clk 00:06:31]} 11. Nf4 {[%clk 00:05:57]} {[%emt
00:00:04]} h4 {[%clk 00:05:26]} {[%emt 00:01:04]} 12. Nxh3 {[%clk 00:05:44]}
{[%emt 00:00:48]} hxg3 {[%clk 00:04:27]} {[%emt 00:00:29]} 13. Nf4 {[%clk
00:04:47]} {[%emt 00:01:17]} gxh2+ {[%clk 00:04:27]} 14. Nxh2 {[%clk 00:04:28]}
{[%emt 00:00:35]} e5 {[%clk 00:04:27]} 15. Bg2 {[%clk 00:03:22]} {[%emt
00:00:43]} exf4 {[%clk 00:04:24]} {[%emt 00:00:33]} 16. Bxf4 {[%clk 00:03:22]}
Nf6 {[%clk 00:04:04]} {[%emt 00:00:13]} 17. e3 {[%clk 00:02:57]} {[%emt
00:00:36]} Ne5 {[%clk 00:02:54]} {[%emt 00:00:48]} 18. Bxe5 {[%clk 00:02:31]}
{[%emt 00:00:29]} dxe5 {[%clk 00:02:54]} {[%emt 00:00:05]} 19. Qb3 {[%clk
00:02:16]} {[%emt 00:00:24]} O-O {[%clk 00:02:20]} {[%emt 00:00:28]} 20. Qxb7
{[%clk 00:01:47]} {[%emt 00:00:45]} Qxb7 {[%clk 00:02:04]} {[%emt 00:00:06]} 21.
Bxb7 {[%clk 00:01:47]} {[%emt 00:00:21]} Rb8 {[%clk 00:02:04]} 22. Bc6 {[%clk
00:01:39]} Rxb2 {[%clk 00:02:04]} 23. a4 {[%clk 00:01:03]} {[%emt 00:00:34]}
Rd8 {[%clk 00:01:51]} {[%emt 00:00:18]} 24. Ra3 {[%clk 00:01:00]} {[%emt
00:00:05]} a5 {[%clk 00:01:38]} {[%emt 00:00:17]} 25. Nf3 {[%clk 00:00:45]}
{[%emt 00:00:18]} Ng4 {[%clk 00:01:36]} {[%emt 00:00:08]} 26. Rf1 {[%clk
00:00:45]} Bh6 {[%clk 00:01:22]} {[%emt 00:00:14]} 27. Bd5 {[%clk 00:00:42]}
{[%emt 00:00:27]} Nxf2 {[%clk 00:00:47]} {[%emt 00:00:15]} 28. Nxe5 {[%clk
00:00:28]} {[%emt 00:00:17]} Bxe3 {[%clk 00:00:47]} {[%emt 00:00:36]} 29. Bxf7+
{[%clk 00:00:10]} Kg7 {[%clk 00:00:47]} 30. Kg2 {[%clk 00:00:09]} Ng4+ {[%clk
00:00:31]} {[%emt 00:00:10]} 31. Kf3 {[%clk 00:00:07]} {[%emt 00:00:12]} Nxe5+
{[%clk 00:00:29]} {[%emt 00:00:14]} 32. Kxe3 {[%clk 00:00:07]} Nxf7 {[%clk
00:00:29]} 33. Rf4 {[%clk 00:00:04]} Re8+ {[%clk 00:00:24]} 34. Re4 {[%clk
00:00:04]} {[%emt 00:00:10]} Rxe4+ 35. Kxe4 {[%clk 00:00:04]} g5 {[%clk
00:00:19]} {[%emt 00:00:04]} 36. Kd5 {[%clk 00:00:04]} g4 {[%clk 00:00:11]}
{[%emt 00:00:20]} 37. Kxc5 {[%clk 00:00:04]} g3 {[%clk 00:00:11]} 38. d4 {[%clk
00:00:04]} g2 {[%clk 00:00:11]} 39. Rg3+ {[%clk 00:00:04]} Kf6 {[%clk
00:00:11]} 40. d5 {[%clk 00:00:04]} Ng5 {[%clk 00:00:11]} {[%emt 00:00:10]} 41.
Rg4 {[%clk 00:00:04]} Kf5 {[%clk 00:00:08]} 0-1